bitfinex/quotes_ETHUSD_20241104
["timestamp","ask_amount","ask_price","bid_price","bid_amount"]
[1730744237937,4.11975,2427.4,2426.8,4.12049]
[1730744238102,4.11956,2427.5,2427.0,4.12029]
[1730744238303,4.11956,2427.5,2426.9,0.86710611]
[1730744238304,3.92777186,2427.7,2426.9,0.7847]
[1730744238744,4.12,2427.2,2426.9,0.7847]
[1730744239040,4.12022,2427.1,2426.7,0.7526]
[1730744239449,4.12022,2427.1,2426.7,4.87337]
[1730744239606,4.11991,2427.3,2426.8,4.12057]
[1730744239800,4.11991,2427.3,2426.9,4.12044]
[1730744240239,4.11991,2427.3,2426.8,8.24114]
[1730744240801,8.23919,2427.5,2426.9,4.12035]
[1730744241026,4.11976,2427.4,2426.9,4.12035]
[1730744241433,8.04695186,2427.7,2426.9,0.08240269]
[1730744241632,4.11931,2427.6,2427.1,4.12004]
[1730744241953,4.11931,2427.6,2427.2,4.11988]
[1730744242136,4.11964,2427.4,2427.0,0.753]
[1730744243212,4.1198,2427.3,2426.8,4.12054]
[1730744243544,8.04741186,2427.4,2426.8,5.326031]
[1730744243752,4.11998,2427.2,2426.8,5.326031]
[1730744243965,12.16720186,2427.4,2426.8,9.446581]
[1730744244266,4.11981,2427.3,2426.8,9.446581]
[1730744244432,8.04741186,2427.4,2426.8,9.446581]
[1730744244433,8.04741186,2427.4,2426.8,5.326031]
[1730744244766,4.11998,2427.2,2426.8,5.326031]
[1730744245262,4.12018,2427.1,2426.7,0.8135]
[1730744245464,4.12032,2427.0,2426.5,0.7659]
[1730744245621,3.58247186,2427.1,2426.5,0.7659]
[1730744245816,4.12073,2426.8,2426.5,0.7659]
[1730744246015,4.12073,2426.8,2426.3,4.88735]
[1730744246458,4.12084,2426.7,2426.3,4.88735]
[1730744246665,4.12093,2426.7,2426.3,0.7659]
[1730744246957,4.12102,2426.6,2426.1,5.81948888]
[1730744247156,4.12102,2426.6,2426.2,1.0575371]
[1730744247361,4.12102,2426.6,2426.1,0.7891]
[1730744247657,4.12125,2426.5,2426.1,4.91093]
[1730744247819,4.12102,2426.6,2426.2,4.12159]
[1730744248891,4.12102,2426.6,2426.1,0.7891]
[1730744249095,4.12128,2426.5,2426.1,0.7891]
[1730744249471,4.12095,2426.7,2426.2,4.12163]
[1730744249676,4.12095,2426.7,2426.2,5.50046621]
[1730744249882,4.12031,2427.0,2426.2,5.50046621]
[1730744250117,4.1209,2426.7,2426.2,5.50046621]
[1730744250272,4.12065,2426.8,2426.2,5.50041621]
[1730744250471,4.12065,2426.8,2426.3,4.12136]
[1730744250767,3.99453686,2426.8,2426.1,0.7891]
[1730744250988,4.12124,2426.5,2426.1,0.7891]
[1730744251182,4.12138,2426.4,2426.1,0.7891]
[1730744251400,4.12117,2426.5,2426.1,0.7891]
[1730744251600,8.24241,2426.5,2426.1,0.7891]
[1730744252292,4.12117,2426.5,2426.1,0.7891]
[1730744252500,0.05634165,2426.4,2426.1,0.7891]
[1730744253403,0.05634165,2426.4,2426.1,2.16799821]
[1730744253724,0.05634165,2426.4,2426.3,4.1215]
[1730744253927,4.12072,2426.8,2426.3,4.1215]
[1730744254220,4.12072,2426.8,2426.3,8.243]
[1730744254421,8.24153,2426.8,2426.3,4.1215]
[1730744254793,4.1209,2426.7,2426.2,4.12164]
[1730744254996,4.12108,2426.6,2426.1,4.91092]
[1730744255305,4.12128,2426.5,2426.1,0.7891]
[1730744255528,4.12135,2426.4,2426.1,0.7891]
[1730744255679,4.12124,2426.5,2426.1,0.7891]
[1730744257710,4.12142,2426.4,2426.1,0.7891]
[1730744257907,4.12161,2426.3,2426.1,0.7891]
[1730744258107,4.12134,2426.4,2426.1,0.7891]
[1730744262733,4.12117,2426.5,2426.1,0.7891]
[1730744263026,4.12133,2426.4,2426.1,0.7891]
[1730744263202,4.12118,2426.5,2426.1,4.91089]
[1730744263409,4.12092,2426.7,2426.2,4.12152]
[1730744263623,4.12077,2426.8,2426.3,4.1214]
[1730744263924,4.12091,2426.7,2426.3,4.1214]
[1730744264327,8.24182,2426.7,2426.3,4.1214]
[1730744264486,4.12091,2426.7,2426.1,6.28964721]
[1730744264819,4.1211,2426.6,2426.1,10.41139721]
[1730744265118,4.1211,2426.6,2426.2,4.12162]
[1730744265330,4.12091,2426.7,2426.2,5.63833493]
[1730744265620,4.12068,2426.8,2426.4,4.12125]
[1730744265822,4.12056,2426.9,2426.5,4.93366]
[1730744266431,4.12035,2427.0,2426.5,4.93354]
[1730744266653,4.12056,2426.9,2426.5,4.93354]
[1730744267326,4.12035,2427.0,2426.6,4.12091]
[1730744267327,4.12039,2427.0,2426.6,4.12091]
[1730744267527,4.12009,2427.2,2426.6,4.12091]
[1730744267528,0.05613897,2426.8,2426.6,4.12091]
[1730744267701,4.12035,2427.0,2426.6,4.614251]
[1730744267899,4.12016,2427.1,2426.7,4.1208]
[1730744268133,4.11974,2427.4,2426.9,4.12046]
[1730744268495,4.12,2427.2,2426.8,4.93303]
[1730744269444,4.11982,2427.3,2426.8,9.05355]
[1730744269801,3.96290361,2427.3,2426.8,9.05355]
[1730744270003,3.96290361,2427.3,2426.8,4.93302]
[1730744270839,4.11976,2427.4,2426.9,4.12047]
[1730744271205,4.11971,2427.4,2427.0,0.767]
[1730744271614,8.23943,2427.4,2427.0,0.767]
[1730744271854,4.11971,2427.4,2427.0,0.767]
[1730744272148,8.23945,2427.4,2427.0,0.767]
[1730744272359,4.11971,2427.4,2427.0,0.767]
[1730744273038,4.11971,2427.4,2427.0,4.88731]
[1730744273544,4.11971,2427.4,2427.0,0.767]
[1730744273923,4.11971,2427.4,2427.0,1.667802]
[1730744274123,4.11971,2427.4,2427.0,5.788102]
[1730744274939,4.11971,2427.4,2427.0,1.667802]
[1730744275619,4.11981,2427.3,2427.0,1.667802]
[1730744276021,4.11981,2427.3,2427.1,0.13359947]
[1730744277151,4.11981,2427.3,2426.8,4.12052]
[1730744277152,0.823952,2427.3,2426.6,7.614181]
[1730744277361,4.12032,2427.0,2426.8,0.7775]
[1730744277519,4.12032,2427.0,2426.6,0.7775]
[1730744277520,8.24078,2427.0,2426.6,0.7775]
[1730744277714,4.12032,2427.0,2426.6,0.7775]
[1730744277940,4.12032,2427.0,2426.6,4.89847]
[1730744278122,4.12032,2427.0,2426.7,0.1336377]
[1730744278438,4.12032,2427.0,2426.8,0.1336377]
[1730744278651,4.12032,2427.0,2426.6,5.800432]
[1730744278842,4.12032,2427.0,2426.7,0.13359895]
[1730744279022,4.12032,2427.0,2426.8,0.13359895]
[1730744279222,8.04741186,2427.4,2426.7,0.2137938]
[1730744279416,4.1204,2427.0,2426.8,0.13356159]
[1730744279644,4.12048,2426.9,2426.6,0.7775]
[1730744279857,4.12048,2426.9,2426.7,0.13355902]
[1730744280060,4.12048,2426.9,2426.8,0.13355902]
[1730744280357,4.12048,2426.9,2426.6,0.7775]
[1730744280723,4.12065,2426.8,2426.7,0.13355561]
[1730744281059,4.12048,2426.9,2426.5,0.2137305]
[1730744281220,4.12048,2426.9,2426.6,0.1335546]
[1730744281441,0.3453,2427.0,2426.4,4.88872]
[1730744281442,4.12033,2427.0,2426.7,0.1335546]
[1730744281647,4.12033,2427.0,2426.5,4.12115]
[1730744281983,4.12033,2427.0,2426.7,0.753]
[1730744282165,4.12012,2427.2,2426.7,0.753]
[1730744282371,0.0544784,2426.9,2426.8,4.25417703]
[1730744282587,4.11964,2427.4,2426.9,4.12036]
[1730744282741,4.11986,2427.3,2427.0,0.13353703]
[1730744282941,4.11964,2427.4,2426.9,4.90435]
[1730744283142,8.23936,2427.4,2427.0,0.13351075]
[1730744283449,8.2388,2427.6,2427.2,4.90042]
[1730744283645,4.11938,2427.6,2427.2,4.90042]
[1730744283839,3.58247186,2427.7,2427.2,0.7805]
[1730744284048,4.11913,2427.7,2427.3,4.1198]
[1730744284395,4.11913,2427.7,2427.2,4.90037]
[1730744284396,4.11929,2427.6,2427.2,4.90037]
[1730744284549,4.11929,2427.6,2427.3,0.90204]
[1730744284750,4.11904,2427.8,2427.3,5.02169]
[1730744285246,4.11914,2427.7,2427.3,5.02169]
[1730744285463,4.11913,2427.7,2427.3,5.02169]
[1730744285663,6.08344528,2428.0,2427.4,4.11962]
[1730744285664,8.04654186,2428.0,2427.4,4.11962]
[1730744285943,4.11886,2427.9,2427.5,4.87975]
[1730744286145,4.11872,2428.0,2427.5,4.87975]
[1730744286344,8.23746,2428.0,2427.5,4.87975]
[1730744286545,8.23746,2428.0,2427.5,5.83852049]
[1730744286793,4.1783572,2428.1,2427.6,4.11929]
[1730744286950,4.11862,2428.0,2427.6,4.11929]
[1730744287147,4.11862,2428.0,2427.6,5.17392154]
[1730744287967,4.11879,2427.9,2427.6,1.05463154]
[1730744288191,4.11862,2428.0,2427.6,5.17392154]
[1730744288553,4.11862,2428.0,2427.6,1.05463154]
[1730744288750,4.11931,2427.6,2427.2,4.88497]
[1730744289278,4.11889,2427.9,2427.2,0.7651]
[1730744289475,4.11914,2427.7,2427.2,0.7651]
[1730744289687,4.11914,2427.7,2427.2,5.38685922]
[1730744289984,4.11897,2427.8,2427.3,4.11967]
[1730744290314,4.11932,2427.6,2427.2,1.26691922]
[1730744290474,4.11938,2427.6,2427.2,5.38686922]
[1730744290674,3.58247186,2427.6,2427.2,0.7651]
[1730744290877,4.11948,2427.5,2427.2,0.7651]
[1730744291096,4.11913,2427.7,2427.2,0.7651]
[1730744291267,4.11913,2427.7,2427.3,4.11978]
[1730744291606,8.23836,2427.7,2427.2,4.8849]
[1730744292110,4.11913,2427.7,2427.2,4.8849]
[1730744292267,4.11913,2427.7,2427.2,5.785409]
[1730744292606,8.23837,2427.7,2427.2,5.785409]
[1730744293108,4.11897,2427.8,2427.2,5.785409]
[1730744293279,4.11897,2427.8,2427.2,1.665609]
[1730744293479,4.11927,2427.7,2427.2,5.785559]
[1730744294178,4.1193,2427.6,2427.2,5.785559]
[1730744295013,4.1193,2427.6,2427.2,1.665609]
[1730744295180,4.11954,2427.5,2427.2,0.7651]
[1730744295377,4.1193,2427.6,2427.2,0.7651]
[1730744295578,4.1193,2427.6,2427.2,4.88507]
[1730744296190,8.23871,2427.6,2427.2,4.88507]
[1730744296601,4.1193,2427.6,2427.2,9.905496]
[1730744296766,4.1193,2427.6,2427.2,5.785526]
[1730744297171,4.1191,2427.8,2427.2,5.785526]
[1730744297475,0.0536225,2427.5,2427.3,0.13334844]
[1730744297815,0.0536225,2427.4,2427.2,5.86795832]
[1730744297984,0.0536225,2427.4,2427.3,4.8612612]
[1730744298318,4.11888,2427.9,2427.4,4.11961]
[1730744299573,3.58247186,2427.9,2427.3,1.37913375]
[1730744299911,4.11939,2427.6,2427.3,0.771]
[1730744300278,4.11913,2427.7,2427.3,0.771]
[1730744300633,0.4051272,2428.1,2427.4,4.11956]
[1730744300634,4.11868,2428.0,2427.4,4.11956]
[1730744300798,4.11878,2427.9,2427.5,4.11945]
[1730744301469,4.11922,2427.7,2427.3,3.771]
[1730744301698,0.757222,2427.7,2427.0,4.12019]
[1730744301906,4.11977,2427.4,2427.1,0.90326092]
[1730744302086,4.1199,2427.3,2427.2,0.13336092]
[1730744302283,4.1199,2427.3,2427.0,0.21340772]
[1730744302575,8.23949,2427.4,2427.1,0.13335261]
[1730744302802,4.11972,2427.4,2427.2,0.13335784]
[1730744302972,4.11972,2427.4,2427.0,4.33369772]
[1730744303173,4.11972,2427.4,2427.0,4.12029]
[1730744303393,4.11972,2427.4,2427.1,0.13335895]
[1730744303594,4.11972,2427.4,2427.2,0.13336786]
[1730744303822,4.11972,2427.4,2427.0,4.33370884]
[1730744304118,7.70187186,2427.6,2427.1,4.25349561]
[1730744304277,3.58247186,2427.9,2427.3,4.89917]
[1730744304479,8.23769,2427.9,2427.3,4.89917]
[1730744304789,4.11882,2427.9,2427.4,4.25291668]
[1730744304983,4.11882,2427.9,2427.4,5.05609244]
[1730744305575,7.70133186,2427.9,2427.4,0.93655244]
[1730744305776,4.11903,2427.8,2427.4,4.1196]
[1730744306008,4.11903,2427.8,2427.3,4.89917]
[1730744306009,8.23808,2427.8,2427.3,4.89917]
[1730744306215,4.11903,2427.8,2427.3,9.0189]
[1730744306417,4.11913,2427.7,2427.3,0.7794]
[1730744306626,4.47719719,2427.8,2427.3,4.89919]
[1730744306842,4.11895,2427.8,2427.4,4.11962]
[1730744306985,4.11919,2427.7,2427.3,4.89917]
[1730744307179,4.11895,2427.8,2427.3,5.80108]
[1730744307430,4.11874,2428.0,2427.4,4.11958]
[1730744307778,4.1783072,2428.1,2427.6,4.86993]
[1730744307941,0.0598272,2428.1,2427.8,4.11887]
[1730744308136,0.0598272,2428.1,2428.0,0.7507]
[1730744308341,0.0598272,2428.1,2428.0,4.86931]
[1730744308784,0.0598272,2428.1,2428.0,5.0026067]
[1730744308979,0.0598272,2428.1,2428.0,5.00260185]
[1730744309216,0.0598272,2428.1,2428.0,6.00461623]
[1730744309485,0.0598272,2428.1,2428.0,5.87132438]
[1730744309690,0.0598272,2428.1,2428.0,6.00459595]
[1730744309920,0.0598272,2428.1,2428.0,1.88598595]
[1730744310086,4.1782672,2428.1,2427.8,0.7507]
[1730744310523,4.11865,2428.0,2427.8,0.7507]
[1730744310827,4.11868,2428.0,2427.6,0.13330468]
[1730744311026,4.1188,2427.9,2427.5,5.10124667]
[1730744311200,4.1188,2427.9,2427.6,0.9433686]
[1730744311553,4.1188,2427.9,2427.7,0.1332623]
[1730744311825,4.1188,2427.9,2427.6,0.81012467]
[1730744312028,4.1188,2427.9,2427.7,0.1332382]
[1730744312320,4.1188,2427.9,2427.5,4.88796]
[1730744312532,0.05421509,2427.8,2427.6,0.92207486]
[1730744312741,0.05421509,2427.8,2427.7,0.13327886]
[1730744312881,0.05421509,2427.8,2427.6,0.788796]
[1730744313093,4.11917,2427.7,2427.5,0.98187054]
[1730744313282,0.05421509,2427.8,2427.6,0.13329541]
[1730744313537,4.11889,2427.9,2427.7,0.13328385]
[1730744313734,4.11889,2427.9,2427.5,4.88798]
[1730744313885,4.11889,2427.9,2427.6,0.900749]
[1730744314085,4.11889,2427.9,2427.5,4.88798]
[1730744314086,4.11889,2427.9,2427.7,0.13330162]
[1730744314325,4.11889,2427.9,2427.5,4.88798]
[1730744314503,4.11889,2427.9,2427.6,0.13329751]
[1730744314700,0.0598272,2428.1,2427.7,0.13329751]
[1730744314910,0.0598272,2428.1,2427.7,4.20138303]
[1730744315234,0.0598272,2428.1,2427.9,0.7802]
[1730744318130,4.1783372,2428.1,2427.9,0.7802]
[1730744318635,4.11886,2427.9,2427.6,0.99346635]
[1730744318790,4.11886,2427.9,2427.6,0.7802]
[1730744318990,4.11886,2427.9,2427.7,0.13328749]
[1730744319300,4.11886,2427.9,2427.6,0.7802]
[1730744320117,4.5236872,2428.1,2427.6,1.59149564]
[1730744320285,3.58247186,2428.0,2427.4,0.82]
[1730744320493,4.11879,2427.9,2427.5,4.25270647]
[1730744320790,0.0598272,2428.1,2427.7,4.93902]
[1730744320992,0.0598272,2428.1,2427.8,0.905824]
[1730744321607,4.1783072,2428.1,2427.8,0.905824]
[1730744322833,0.0598272,2428.1,2427.8,5.10708339]
[1730744323613,0.0598272,2428.1,2427.8,0.98819339]
[1730744323614,4.1782872,2428.1,2427.8,0.98819339]
[1730744324351,0.0598272,2428.1,2427.8,5.10709339]
[1730744324509,0.0598272,2428.1,2427.9,5.47087934]
[1730744324711,0.0598272,2428.1,2428.0,0.08236289]
[1730744324911,0.0598272,2428.1,2427.9,1.35220934]
[1730744325140,0.0598272,2428.1,2428.0,0.21561994]
[1730744325409,0.0598272,2428.1,2428.0,0.56865093]
[1730744326911,0.0598272,2428.1,2428.0,0.13326385]
[1730744327254,0.0598272,2428.1,2427.9,0.7595]
[1730744327412,0.1097391,2428.1,2427.9,4.87823]
[1730744327843,0.1097391,2428.1,2428.0,0.08236388]
[1730744329205,0.1097391,2428.1,2428.0,4.20097388]
[1730744329407,0.1097391,2428.1,2428.0,5.24215518]
[1730744329768,0.0598272,2428.1,2428.0,9.57584646]
[1730744329924,0.0598272,2428.1,2428.0,9.70671209]
[1730744330459,0.0598272,2428.1,2428.0,10.41917585]
[1730744330952,0.0598272,2428.1,2428.0,9.70671209]
[1730744331315,0.0598272,2428.1,2428.0,10.07237901]
[1730744331518,0.0598272,2428.1,2428.0,9.70634523]
[1730744332915,4.11682,2429.1,2428.8,0.7535]
[1730744333211,0.05033011,2429.0,2428.8,1.240591]
[1730744333411,4.16725011,2429.0,2428.8,1.240591]
[1730744333769,4.16725011,2429.0,2428.8,0.7535]
[1730744334161,4.16725011,2429.0,2428.6,4.88878]
[1730744334665,4.16725011,2429.0,2428.6,4.88869]
[1730744335159,0.05033011,2429.0,2428.6,4.88866]
[1730744335517,0.05033011,2429.0,2428.6,9.00618]
[1730744335860,0.05033011,2429.0,2428.7,1.200618]
[1730744337230,0.05033011,2429.0,2428.7,5.318028]
[1730744337563,4.1763072,2429.3,2428.8,4.19948553]
[1730744337729,0.05033011,2428.9,2428.8,4.19948553]
[1730744337989,0.05036788,2428.9,2428.7,4.11742]
[1730744338311,4.11666,2429.2,2428.7,4.11742]
[1730744338516,0.05045602,2428.8,2428.7,7.11742]
[1730744338814,0.05045602,2428.8,2428.7,8.318029]
[1730744338986,4.11666,2429.2,2428.7,8.45091367]
[1730744339310,0.05045602,2429.1,2428.7,8.318029]
[1730744339519,4.16730602,2429.1,2428.7,4.200609]
[1730744339815,4.11719,2428.9,2428.6,0.7712]
[1730744339974,0.0505215,2428.8,2428.6,0.7712]
[1730744340514,0.0505215,2428.8,2428.4,7.92852]
[1730744340685,4.11753,2428.7,2428.4,3.8106]
[1730744340873,4.1678615,2428.8,2428.4,3.8106]
[1730744341074,0.05049128,2428.6,2428.4,4.62472657]
[1730744341274,4.11734,2428.8,2428.4,4.62472657]
[1730744341610,0.4051,2429.1,2428.4,8.74257657]
[1730744341611,0.0504384,2428.5,2428.4,8.74257657]
[1730744341811,0.4051,2429.1,2428.4,4.97006174]
[1730744341983,0.05035278,2429.0,2428.7,4.11732]
[1730744342422,0.05035278,2429.0,2428.7,7.11726]
[1730744342716,4.1763872,2429.3,2428.8,0.8317]
[1730744342926,0.0598272,2429.3,2429.0,4.11682]
[1730744343424,0.0598272,2429.3,2429.1,4.11667]
[1730744344423,0.0598272,2429.3,2429.0,4.611742]
[1730744344989,0.0598272,2429.3,2429.2,4.11658]
[1730744345317,0.0598272,2429.3,2429.2,4.93258]
[1730744345625,0.0598272,2429.3,2429.2,0.816]
[1730744348091,0.0598272,2429.3,2429.2,1.6587472]
[1730744348288,0.0598272,2429.3,2429.2,5.7753272]
[1730744349014,0.0598272,2429.3,2429.2,1.6587472]
[1730744349232,0.0598272,2429.3,2429.2,5.7753272]
[1730744349539,0.0598272,2429.3,2429.2,0.8427472]
[1730744349709,0.4649272,2429.3,2429.2,0.8427472]
[1730744349891,0.4649272,2429.3,2428.9,4.90543]
[1730744349892,4.11658,2429.2,2428.9,0.7885]
[1730744350095,0.4649272,2429.3,2429.0,3.0]
[1730744350429,0.0598272,2429.3,2429.1,4.11668]
[1730744350624,0.0598272,2429.3,2429.2,0.41990106]
[1730744352540,0.0598272,2429.3,2429.1,0.7885]
[1730744353036,0.0598272,2429.3,2429.1,4.90517]
[1730744353638,0.0598272,2429.3,2429.1,4.90514]
[1730744353934,0.0598272,2429.3,2429.1,0.7885]
[1730744354234,0.0598272,2429.3,2429.1,4.90515]
[1730744354439,0.0598272,2429.3,2429.2,4.607095]
[1730744354646,0.0598272,2429.3,2429.2,7.607095]
[1730744354948,0.0598272,2429.3,2429.2,8.51970776]
[1730744355097,0.0598272,2429.3,2429.2,8.57021597]
[1730744355303,0.0598272,2429.3,2429.2,8.78260301]
[1730744355495,0.0598272,2429.3,2429.2,9.33260301]
[1730744355936,0.0598272,2429.3,2429.2,9.34260301]
[1730744356097,4.51991,2430.3,2429.8,4.94579]
[1730744356299,0.4051,2430.3,2429.8,0.8303]
[1730744356511,4.16285563,2430.2,2429.8,5.740465]
[1730744356765,0.04788563,2430.2,2429.8,1.624905]
[1730744356966,0.04788563,2430.2,2430.0,4.11508]
[1730744357268,4.11457,2430.4,2429.9,4.11539]
[1730744357436,0.04788563,2430.1,2429.9,4.11539]
[1730744357636,4.11482,2430.3,2429.9,5.1009095]
[1730744357845,0.04788563,2430.0,2429.9,5.1009095]
[1730744358050,4.11482,2430.3,2429.9,5.1009095]
[1730744358369,0.04788563,2430.0,2429.9,4.11532]
[1730744358569,4.11482,2430.3,2429.9,4.11532]
[1730744358570,8.22963,2430.3,2429.9,4.11532]
[1730744358865,4.11481,2430.3,2429.9,4.11532]
[1730744359064,0.04788563,2430.2,2429.9,4.11532]
[1730744359367,4.11515,2430.1,2429.8,0.8303]
[1730744359579,3.98757186,2430.1,2429.6,0.2124786]
[1730744359739,4.11556,2429.8,2429.4,4.94156]
[1730744359942,4.11534,2430.0,2429.5,4.24883638]
[1730744360261,4.11534,2430.0,2429.6,0.13281638]
[1730744360500,4.16359766,2429.9,2429.5,4.19833166]
[1730744360640,0.04819766,2429.9,2429.6,0.13282777]
[1730744360839,0.04819766,2429.9,2429.5,4.19829166]
[1730744361071,0.04819766,2429.9,2429.6,0.65645115]
[1730744361231,0.04819766,2429.9,2429.5,4.11598]
[1730744361432,0.04819766,2429.9,2429.6,0.13284965]
[1730744361777,0.04819766,2429.9,2429.5,4.11598]
[1730744361778,0.04819766,2429.9,2429.5,4.11596]
[1730744361971,0.04819766,2429.9,2429.6,4.33096845]
[1730744362267,0.04819766,2429.9,2429.7,0.13285327]
[1730744362466,0.04819766,2429.9,2429.7,4.54048833]
[1730744362656,0.4051,2430.1,2429.7,0.42485833]
[1730744362995,0.04812973,2429.8,2429.7,8.08124053]
[1730744363127,4.11462,2430.4,2429.9,4.11539]
[1730744363526,0.04648776,2430.3,2430.0,0.13277318]
[1730744363763,0.04648776,2430.3,2429.9,4.11539]
[1730744364078,0.04648776,2430.3,2430.1,4.11498]
[1730744364286,0.04648776,2430.3,2430.1,4.91138]
[1730744364496,0.0598272,2430.5,2430.1,4.91138]
[1730744364797,0.0598272,2430.5,2430.1,0.7964]
[1730744364952,0.04662648,2430.4,2430.1,4.91134]
[1730744365152,0.04662648,2430.4,2430.1,5.9338244]
[1730744366252,0.04662648,2430.4,2430.2,4.11487]
[1730744366560,0.04662648,2430.4,2430.3,4.11471]
[1730744366887,0.04662648,2430.4,2430.2,0.0822883]
[1730744367099,0.04662648,2430.4,2430.3,4.11471]
[1730744367393,0.04662648,2430.4,2430.3,0.91084483]
[1730744367765,0.04662648,2430.4,2430.3,5.10784245]
[1730744368089,0.04662648,2430.4,2430.3,5.02555483]
[1730744368449,0.04662648,2430.4,2430.3,0.91084483]
[1730744369092,0.04662648,2430.4,2430.3,5.02555483]
[1730744369300,0.04662648,2430.4,2430.3,8.87203625]
[1730744369453,0.04662648,2430.4,2430.3,8.92236724]
[1730744369793,0.04662648,2430.4,2430.3,9.13454074]
[1730744369995,0.0598272,2430.5,2430.4,7.11454]
[1730744370154,0.0598272,2430.5,2430.4,9.28354048]
[1730744371375,0.10508797,2430.5,2430.4,9.28354048]
[1730744372679,0.0598272,2430.5,2430.4,9.28354048]
[1730744373363,0.10508797,2430.5,2430.4,9.28354048]
[1730744373565,0.0598272,2430.5,2430.4,9.28354048]
[1730744374714,0.10508797,2430.5,2430.4,9.28354048]
[1730744375079,0.0598272,2430.5,2430.4,9.28354048]
[1730744375593,0.10508797,2430.5,2430.4,9.28354048]
[1730744375805,0.10508797,2430.5,2430.4,10.05024048]
[1730744375994,0.10508797,2430.5,2430.4,10.05021236]
[1730744376393,0.10508797,2430.5,2430.4,10.05022903]
[1730744377571,0.10508797,2430.5,2430.4,9.28352903]
[1730744378815,0.4051,2430.4,2430.1,4.11502]
[1730744379174,0.04532632,2430.3,2430.1,8.23]
[1730744379703,0.04532632,2430.3,2430.2,4.11488]
[1730744380087,0.04532632,2430.3,2430.2,4.24756873]
[1730744380287,0.04532632,2430.3,2430.2,5.1651036]
[1730744381324,0.04532632,2430.3,2430.2,5.03241487]
[1730744381631,0.04532632,2430.3,2430.2,0.1328131]
[1730744382125,0.04532632,2430.3,2430.2,4.2476931]
[1730744382687,0.35362505,2430.7,2430.3,8.22942]
[1730744383074,0.35362505,2430.7,2430.6,4.11421]
[1730744383719,8.22696,2431.1,2430.7,4.11401]
[1730744383720,4.11346,2431.1,2430.7,4.11401]
[1730744384032,4.11339,2431.1,2430.7,4.11403]
[1730744384184,4.11354,2431.0,2430.6,4.9425]
[1730744384384,4.11339,2431.1,2430.6,9.05657]
[1730744384693,4.11384,2430.9,2430.5,4.1143]
[1730744385012,4.11397,2430.8,2430.4,3.0]
[1730744385196,8.22796,2430.8,2430.5,0.13303552]
[1730744385528,8.22796,2430.8,2430.4,3.0]
[1730744385529,4.11397,2430.8,2430.6,0.13303552]
[1730744385687,4.11397,2430.8,2430.4,7.11452]
[1730744385886,4.46756,2430.8,2430.5,0.13315652]
[1730744386098,4.46756,2430.8,2430.4,7.11452]
[1730744386390,4.46756,2430.8,2430.5,0.13318249]
[1730744386623,4.46756,2430.8,2430.4,8.320288]
[1730744386855,0.3536,2430.8,2430.5,4.24747252]
[1730744386986,0.3536,2430.8,2430.5,4.11429]
[1730744387195,0.3536,2430.8,2430.6,4.24734428]
[1730744387405,0.3536,2430.8,2430.6,0.54531123]
[1730744387731,0.3536,2430.8,2430.5,4.11435]
[1730744387891,0.3536,2430.8,2430.6,0.13315891]
[1730744388110,3.96731,2430.9,2430.5,4.11435]
[1730744388614,3.96731,2430.9,2430.6,0.13317643]
[1730744388933,3.96731,2430.9,2430.3,8.22919]
[1730744388934,4.11412,2430.7,2430.3,8.22919]
[1730744389260,4.11412,2430.7,2430.4,0.13318092]
[1730744389558,4.11412,2430.7,2430.3,4.937479]
[1730744389726,4.11412,2430.7,2430.4,0.13319196]
[1730744389927,4.11412,2430.7,2430.3,9.052079]
[1730744390129,4.11412,2430.7,2430.4,0.1332083]
[1730744390327,4.11412,2430.7,2430.3,4.11456]
[1730744390659,4.11412,2430.7,2430.4,0.13327012]
[1730744390660,4.11428,2430.6,2430.4,0.13327012]
[1730744390970,0.04375748,2430.5,2430.2,4.11481]
[1730744391118,0.04375748,2430.5,2430.3,0.13326482]
[1730744391322,0.04375748,2430.5,2430.4,0.13326482]
[1730744391563,0.04375748,2430.5,2430.4,0.13329937]
[1730744393832,0.04375748,2430.5,2430.2,4.11486]
[1730744394046,0.04375748,2430.5,2430.3,0.13336397]
[1730744394391,0.04375748,2430.5,2430.4,0.13336397]
[1730744395167,4.11409,2430.7,2430.4,0.13336397]
[1730744395168,4.11423,2430.6,2430.4,0.13336397]
[1730744395323,0.04240507,2430.5,2430.2,4.11481]
[1730744395521,0.04240507,2430.5,2430.3,0.13336662]
[1730744395758,0.04240507,2430.5,2430.4,0.13336662]
[1730744397852,0.0423849,2430.5,2430.4,4.24790662]
[1730744398062,4.11391,2430.8,2430.4,4.95080066]
[1730744398289,0.0423849,2430.7,2430.4,0.83626066]
[1730744398486,4.11391,2430.8,2430.4,0.83626066]
[1730744398799,4.1564249,2430.7,2430.3,4.11461]
[1730744399004,4.11428,2430.6,2430.1,8.22988]
[1730744399183,4.11428,2430.6,2430.2,4.11487]
[1730744399363,0.0423622,2430.5,2430.2,4.11487]
[1730744399556,0.0423622,2430.5,2430.2,5.020458]
[1730744399798,0.0423622,2430.5,2430.3,4.24806163]
[1730744400009,0.0423622,2430.5,2430.4,4.24788961]
[1730744400219,4.11405,2430.7,2430.4,0.13334961]
[1730744400356,0.04237985,2430.5,2430.3,8.22932]
[1730744400562,4.11405,2430.7,2430.4,0.13333692]
[1730744400770,4.11405,2430.7,2430.3,5.1107628]
[1730744401006,4.1139,2430.8,2430.4,4.24787172]
[1730744401222,4.11444,2430.5,2430.1,4.94101]
[1730744401512,4.11444,2430.5,2430.2,0.34676848]
[1730744401679,4.11444,2430.5,2430.3,0.13337422]
[1730744401903,4.11444,2430.5,2430.1,9.05597]
[1730744402075,4.11444,2430.5,2430.2,0.34680041]
[1730744402299,4.11455,2430.4,2430.3,0.13337314]
[1730744402461,0.04237987,2430.4,2430.3,0.13337314]
[1730744403075,4.11431,2430.6,2430.3,0.13337314]
[1730744403297,0.0423395,2430.5,2430.3,4.53946431]
[1730744403520,4.11416,2430.7,2430.4,0.13338491]
[1730744403664,0.04234203,2430.4,2430.3,4.53946431]
[1730744403856,4.11416,2430.7,2430.3,4.67285144]
[1730744404092,0.04234203,2430.6,2430.4,0.13338713]
[1730744404299,0.04234203,2430.6,2430.3,4.53946431]